fUSD/lending_fUSD_20241102
["ID","MTS","AMOUNT","RATE_DAILY","PERIOD"]
[341190493,1730581124701,-150.0,0.00024458,2]
[341190494,1730581124725,-150.0,0.00024461,2]
[341190495,1730581124752,-150.0,0.00024472,2]
[341190496,1730581124778,-150.0,0.00024473,2]
[341190497,1730581124804,-150.0,0.00024474,2]
[341190498,1730581124831,-150.0,0.00024476,2]
[341190499,1730581124857,-150.0,0.00024477,2]
[341190500,1730581124881,-150.0,0.00024484,2]
[341190501,1730581124906,-150.0,0.00024485,2]
[341190502,1730581124930,-150.0,0.00024487,2]
[341190503,1730581124954,-150.0,0.00024492,2]
[341190504,1730581124978,-150.0,0.00024494,2]
[341190505,1730581125004,-150.0,0.00024494,2]
[341190506,1730581125028,-150.0,0.00024494,2]
[341190507,1730581125051,-150.0,0.00024495,2]
[341190508,1730581125076,-150.0,0.00024495,2]
[341190509,1730581125101,-150.0,0.00024499,2]
[341190510,1730581125333,-150.0,0.000245,2]
[341190511,1730581125359,-150.0,0.00024501,2]
[341190512,1730581125383,-150.0,0.00024508,2]
[341190513,1730581125407,-150.0,0.00024508,2]
[341190514,1730581125431,-150.0,0.00024514,2]
[341190515,1730581125455,-150.0,0.0002452,2]
[341190516,1730581125479,-150.0,0.00024526,2]
[341190517,1730581125502,-150.0,0.00024531,2]
[341190518,1730581125526,-150.0,0.00024532,2]
[341190519,1730581125551,-150.0,0.0002455,2]
[341190520,1730581125576,-150.0,0.00024554,2]
[341190521,1730581125604,-150.0,0.00024554,2]
[341190522,1730581125634,-150.0,0.00024556,2]
[341190523,1730581125656,-150.0,0.00024559,2]
[341190524,1730581125680,-150.0,0.00024569,2]
[341190525,1730581125704,-150.0,0.0002457,2]
[341190526,1730581125728,-150.0,0.00024571,2]
[341190527,1730581125751,-150.0,0.00024572,2]
[341190528,1730581125774,-150.0,0.00024573,2]
[341190529,1730581125797,-150.0,0.00024578,2]
[341190530,1730581125821,-150.0,0.00024581,2]
[341190531,1730581125845,-1500.0,0.00024582,2]
[341190532,1730581125869,-150.0,0.00024584,2]
[341190533,1730581125894,-150.0,0.00024588,2]
[341190534,1730581125920,-150.0,0.00024588,2]
[341190535,1730581125944,-150.0,0.00024588,2]
[341190536,1730581125972,-150.0,0.0002459,2]
[341190537,1730581126001,-710.96,0.00024594,2]
[341190538,1730581126029,-150.0,0.00024595,2]
[341190539,1730581126055,-150.0,0.00024598,2]
[341190540,1730581126081,-150.0,0.00024602,2]
[341190541,1730581126106,-150.0,0.00024604,2]
[341190542,1730581126340,-150.0,0.00024604,2]
[341190543,1730581126370,-150.0,0.00024606,2]
[341190544,1730581126394,-150.0,0.00024606,2]
[341190545,1730581126421,-150.0,0.00024609,2]
[341190546,1730581126446,-150.0,0.00024611,2]
[341190547,1730581126472,-150.0,0.00024612,2]
[341190548,1730581126500,-150.0,0.00024612,2]
[341190549,1730581126527,-400.26,0.00024618,2]
[341190550,1730581126554,-150.0,0.0002462,2]
[341190551,1730581126582,-150.0,0.00024621,2]
[341190552,1730581126609,-150.0,0.00024622,2]
[341190553,1730581126637,-150.0,0.00024622,2]
[341190554,1730581126661,-150.0,0.00024625,2]
[341190555,1730581126684,-150.0,0.00024631,2]
[341190556,1730581126708,-150.0,0.00024631,2]
[341190557,1730581126732,-150.0,0.00024632,2]
[341190558,1730581126757,-150.0,0.00024635,2]
[341190559,1730581126782,-295.73750005,0.00024636,2]
[341190560,1730581126806,-150.0,0.00024638,2]
[341190561,1730581126830,-150.0,0.00024643,2]
[341190562,1730581126854,-150.0,0.0002465,2]
[341190563,1730581126879,-150.0,0.0002465,2]
[341190564,1730581126903,-1500.0,0.00024654,2]
[341190565,1730581126927,-150.0,0.00024655,2]
[341190566,1730581126952,-2381.14,0.00024658,2]
[341190567,1730581126977,-1000.0,0.00024842,2]
[341190568,1730581126999,-13470.86414989,0.0002495,2]
[341190569,1730581127118,-500.0,0.00024953,2]
[341190570,1730581127353,-400.26,0.00024978,2]
[341190571,1730581127380,-350.0,0.00025,2]
[341190572,1730581127404,-2667.9091542,0.00025363,2]
[341190573,1730581127427,-150.0,0.00025662,2]
[341190574,1730581127449,-165.35,0.00025691,2]
[341190575,1730581127471,-840.65346158,0.00026323,2]
[341190576,1730581127494,-156.59,0.00026401,2]
[341190577,1730581127518,-710.96,0.00026858,2]
[341190578,1730581127543,-400.0,0.00027,2]
[341190579,1730581127565,-3491.45,0.00027123,2]
[341190580,1730581127589,-1000.0,0.00027326,2]
[341190581,1730581127613,-521.179929,0.00027397,2]
[341190582,1730581127637,-369.41,0.00027397,10]
[341190583,1730581127660,-307.84,0.00027397,10]
[341190586,1730581555167,-155.68,0.00015342,2]
[341190587,1730581555187,-150.0,0.00017,2]
[341190588,1730581555209,-266.21198135,0.00019725,2]
[341190589,1730581628081,-250.0,0.00021,2]
[341190590,1730581628101,-300.0,0.00023,2]
[341190591,1730581628120,-494.94297697,0.00023997,2]
[341190592,1730581645137,-216.01702303,0.00023997,2]
[341190593,1730581645157,-823.32,0.00023997,2]
[341190594,1730581645177,-350.0,0.00025,2]
[341190595,1730581645196,-618.31,0.00025,2]
[341190596,1730581645215,-1017.67136131,0.00025861,2]
[341190611,1730581832020,-168.04,0.00019178,2]
[341190612,1730581832029,-321.04218781,0.00025852,2]
[341190613,1730581832040,-598.63116807,0.00025852,2]
[341190614,1730581832051,-816.53664412,0.00025852,2]
[341190615,1730581832060,-250.0,0.00025856,2]
[341190616,1730581832069,-93.44863869,0.00025861,2]
[341190617,1730581832077,-216.22460376,0.00025871,2]
[341190618,1730581832088,-869.35539624,0.00025871,2]
[341190619,1730581832097,-200.0,0.00025877,2]
[341190620,1730581832106,-200.0,0.00025886,2]
[341190621,1730581832115,-165.18,0.00025913,2]
[341190622,1730581832124,-160.57,0.00025926,2]
[341190623,1730581832133,-156.32,0.00025959,2]
[341190624,1730581832142,-1951.8,0.00025959,2]
[341190625,1730581832151,-667.51,0.0002597,2]
[341190626,1730581832159,-23900.0,0.00025992,2]
[341190627,1730581832169,-1000.0,0.00026025,2]
[341190628,1730581832179,-202.68,0.00026245,2]
[341190629,1730581832188,-222.94,0.00026257,2]
[341190630,1730581832197,-202.68,0.00026259,2]
[341190631,1730581832206,-710.96,0.00026261,2]
[341190632,1730581832214,-202.68,0.00026273,2]
[341190633,1730581832223,-202.68,0.00026287,2]
[341190634,1730581832232,-202.68,0.00026301,2]
[341190635,1730581832241,-202.68,0.00026314,2]
[341190636,1730581832250,-811.0,0.00026326,2]
[341190637,1730581832259,-250.0,0.00026326,2]
[341190638,1730581832268,-202.68,0.00026328,2]
[341190639,1730581832277,-202.68,0.00026342,2]
[341190640,1730581832285,-202.68,0.00026356,2]
[341190641,1730581832294,-202.68,0.0002637,2]
[341190642,1730581832303,-202.68,0.00026384,2]
[341190643,1730581832312,-202.68,0.00026397,2]
[341190644,1730581832321,-336.057,0.00026411,13]
[341190645,1730581832330,-202.68,0.00026411,2]
[341190646,1730581832339,-202.68,0.00026425,2]
[341190647,1730581832348,-202.68,0.00026439,2]
[341190648,1730581832357,-202.68,0.00026453,2]
[341190649,1730581832366,-202.68,0.00026466,2]
[341190650,1730581832375,-202.68,0.0002648,2]
[341190652,1730581832386,-202.68,0.00026494,2]
[341190654,1730581832395,-202.68,0.00026508,2]
[341190656,1730581832404,-420.7836102,0.00026756,2]
[341190657,1730581832413,-420.7836102,0.0002696,2]
[341190659,1730581832423,-400.0,0.00027,2]
[341190661,1730581832433,-164.59,0.00027052,2]
[341190663,1730581832442,-150.0,0.00027122,2]
[341190665,1730581832451,-150.0,0.00027127,2]
[341190670,1730581832555,-150.0,0.00027128,2]
[341190671,1730581832564,-150.0,0.00027128,2]
[341190672,1730581832573,-150.0,0.00027136,2]
[341190673,1730581832583,-150.0,0.00027136,2]
[341190674,1730581832592,-150.0,0.00027139,2]
[341190675,1730581832601,-150.0,0.0002714,2]
[341190676,1730581832610,-150.0,0.00027141,2]
[341190677,1730581832619,-150.0,0.00027146,2]
[341190678,1730581832628,-150.0,0.00027152,2]
[341190679,1730581832637,-150.0,0.00027156,2]
[341190680,1730581832647,-150.0,0.00027156,2]
[341190681,1730581832655,-150.0,0.00027157,2]
[341190682,1730581832665,-150.0,0.00027158,2]
[341190684,1730581832674,-150.0,0.0002716,2]
[341190686,1730581832683,-150.0,0.00027162,2]
[341190687,1730581832692,-150.0,0.00027163,2]
[341190688,1730581832701,-150.0,0.00027169,2]
[341190689,1730581832710,-150.0,0.00027171,2]
[341190690,1730581832719,-150.0,0.00027172,2]
[341190691,1730581832728,-150.0,0.00027172,2]
[341190692,1730581832737,-150.0,0.00027173,2]
[341190693,1730581832746,-150.0,0.00027176,2]
[341190694,1730581832755,-150.0,0.00027178,2]
[341190695,1730581832764,-150.0,0.00027181,2]
[341190696,1730581832773,-150.0,0.00027181,2]
[341190697,1730581832783,-150.0,0.00027184,2]
[341190698,1730581832792,-150.0,0.00027184,2]
[341190699,1730581832803,-1500.0,0.00027194,2]
[341190700,1730581832814,-150.0,0.00027196,2]
[341190701,1730581832824,-150.0,0.00027197,2]
[341190702,1730581832834,-150.0,0.00027197,2]
[341190703,1730581832845,-150.0,0.00027197,2]
[341190704,1730581832856,-293.4923275,0.00027198,2]
[341190705,1730581832868,-150.0,0.000272,2]
[341190706,1730581832880,-295.73750005,0.00027204,2]
[341190707,1730581832891,-150.0,0.00027204,2]
[341190708,1730581832902,-150.0,0.00027206,2]
[341190709,1730581832911,-150.0,0.00027208,2]
[341190710,1730581832921,-150.0,0.00027213,2]
[341190711,1730581832930,-150.0,0.00027215,2]
[341190712,1730581832939,-150.0,0.00027215,2]
[341190713,1730581832948,-150.0,0.00027216,2]
[341190714,1730581832958,-150.0,0.00027221,2]
[341190715,1730581832968,-150.0,0.00027226,2]
[341190716,1730581832977,-150.0,0.00027227,2]
[341190717,1730581832988,-150.0,0.00027227,2]
[341190718,1730581832997,-150.0,0.00027232,2]
[341190719,1730581833006,-150.0,0.00027237,2]
[341190720,1730581833015,-150.0,0.00027237,2]
[341190721,1730581833024,-150.0,0.00027238,2]
[341190722,1730581833034,-150.0,0.0002724,2]
[341190723,1730581833043,-150.0,0.00027244,2]
[341190724,1730581833052,-150.0,0.00027244,2]
[341190725,1730581833061,-150.0,0.00027246,2]
[341190726,1730581833071,-150.0,0.00027246,2]
[341190727,1730581833080,-1500.0,0.00027248,2]
[341190728,1730581833089,-150.0,0.00027248,2]
[341190729,1730581833098,-150.0,0.00027249,2]
[341190730,1730581833110,-150.0,0.0002725,2]
[341190731,1730581833119,-156.32,0.00027257,2]
[341190732,1730581833128,-228.7,0.0002726,2]
[341190733,1730581833137,-150.0,0.0002726,2]
[341190734,1730581833146,-150.0,0.00027261,2]
[341190735,1730581833155,-150.0,0.00027262,2]
[341190736,1730581833164,-150.0,0.00027272,2]
[341190737,1730581833174,-150.0,0.00027272,2]
[341190738,1730581833183,-826.92371437,0.00027281,2]
[341190739,1730581833199,-673.07628563,0.00027281,2]
[341190740,1730581833208,-150.0,0.00027282,2]
[341190741,1730581833218,-94.5406278,0.00027284,2]
[341190742,1730581833229,-55.4593722,0.00027284,2]
[341190743,1730581833238,-150.0,0.00027285,2]
[341190744,1730581833247,-150.0,0.0002729,2]
[341190745,1730581833256,-150.0,0.00027292,2]
[341190746,1730581833266,-150.0,0.00027295,2]
[341190747,1730581833275,-150.0,0.00027296,2]
[341190748,1730581833285,-150.0,0.00027299,2]
[341190749,1730581833294,-398.0,0.000273,11]
[341190750,1730581833303,-195.0,0.000273,11]
[341190751,1730581833312,-150.0,0.000273,2]
[341190752,1730581833322,-150.0,0.00027304,2]
[341190753,1730581833331,-150.0,0.00027306,2]
[341190754,1730581833340,-150.0,0.00027308,2]
[341190755,1730581833350,-150.0,0.0002731,2]
[341190756,1730581833360,-150.0,0.00027311,2]
[341190757,1730581833369,-150.0,0.00027316,2]
[341190758,1730581833379,-150.0,0.00027322,2]
[341190759,1730581833393,-150.0,0.00027324,2]
[341190760,1730581833402,-150.0,0.00027326,2]
[341190761,1730581833411,-150.0,0.00027329,2]
[341190762,1730581833421,-150.0,0.0002733,2]
[341190763,1730581833431,-150.0,0.0002733,2]
[341190764,1730581833440,-150.0,0.00027338,2]
[341190765,1730581833456,-150.0,0.00027339,2]
[341190766,1730581833472,-150.0,0.0002734,2]
[341190767,1730581833486,-150.0,0.00027341,2]
[341190768,1730581833500,-150.0,0.00027344,2]
[341190769,1730581833515,-150.0,0.00027345,2]
[341190770,1730581833528,-150.0,0.00027347,2]
[341190771,1730581833541,-150.0,0.00027347,2]
[341190772,1730581833555,-150.0,0.00027349,2]
[341190773,1730581833568,-150.0,0.0002735,2]
[341190774,1730581833581,-150.0,0.0002735,2]
[341190775,1730581833594,-150.0,0.00027356,2]
[341190776,1730581833607,-150.0,0.0002736,2]
[341190777,1730581833620,-150.0,0.00027365,2]
[341190778,1730581833632,-150.0,0.00027367,2]
[341190779,1730581833644,-150.0,0.00027369,2]
[341190780,1730581833656,-321.07815232,0.00027372,2]
[341190781,1730581833673,-99.70545798,0.00027372,2]
[341190782,1730581833686,-150.0,0.00027381,2]
[341190783,1730581833698,-150.0,0.00027386,2]
[341190784,1730581833708,-308.62331043,0.00027391,2]
[341190785,1730581833723,-749.90013726,0.00027391,2]
[341190786,1730581833742,-471.55435349,0.00027391,2]
[341190787,1730581833758,-2363.83308657,0.00027391,2]
[341190808,1730581838331,-1080.357,0.00027391,2]
[341190809,1730581838466,-6028.6116,0.00027391,2]
[341190810,1730581838485,-5994.89121,0.00027391,2]
[341190811,1730581838496,-2104.8067467,0.00027391,2]
[341190812,1730581838507,-347.645,0.00027391,2]
[341190881,1730581840022,-7274.39397665,0.00027391,2]
[341190882,1730581840031,-4309.7949664,0.00027391,2]
[341190883,1730581840041,-150.0,0.00027391,2]
[341190884,1730581840050,-160.85764733,0.00027396,2]
[341190885,1730581840059,-2000.0,0.00027397,2]
[341190886,1730581840068,-200.0,0.00027397,2]
[341190887,1730581840077,-200.0,0.00027397,2]
[341190888,1730581840086,-150.0,0.00027397,7]
[341190889,1730581840096,-307.84,0.00027397,10]
[341190890,1730581840105,-480.65,0.00027397,10]
[341190891,1730581840114,-160.4,0.00027507,2]
[341190892,1730581840123,-500.0,0.00027556,2]
[341190893,1730581840133,-500.0,0.00027556,5]
[341190894,1730581840143,-161.2044226,0.00027557,5]
[341190895,1730581840154,-165.35,0.00027649,2]
[341190896,1730581840166,-2000.0,0.00027671,2]
[341190897,1730581840179,-200.0,0.00027671,2]
[341190898,1730581840188,-2000.0,0.00027948,2]
[341190899,1730581840197,-200.0,0.00027948,2]
[341190900,1730581840206,-1552.9,0.00027989,120]
[341190901,1730581840215,-156.3,0.00028147,2]
[341190902,1730581840226,-1155.0,0.00028203,2]
[341190903,1730581840237,-1199.666,0.00028203,2]
[341190904,1730581840247,-1461.79376864,0.00028227,2]
[341190905,1730581840256,-200.0,0.00028227,2]
[341190906,1730581840265,-180.0,0.00028466,120]
[341190907,1730581840274,-200.0,0.00028509,2]
[341190908,1730581840283,-710.96,0.00028525,2]
[341190909,1730581840291,-164.59,0.0002854,2]
[341190910,1730581840300,-156.32,0.00028555,2]
[341190911,1730581840309,-172.22,0.00028617,2]
[341190912,1730581840319,-1000.0,0.00028925,2]
[341190913,1730581840328,-754.19106608,0.00028925,5]
[341190914,1730581840338,-450.0,0.00029,2]
[341190915,1730581840347,-1000.0,0.00029278,2]
[341190916,1730581840358,-1250.0,0.00029291,2]
[341190917,1730581840368,-1985.0,0.00029291,2]
[341190918,1730581840377,-76.0681523,0.00029291,2]
[341190919,1730581840398,-366.05963097,0.00029291,2]
[341190920,1730581840411,-1349.87221673,0.00029291,2]
[341190921,1730581840421,-1415.964,0.00029291,2]
[341190922,1730581840433,-1262.009,0.00029291,2]
[341190923,1730581840442,-2661.505,0.00029291,2]
[341190924,1730581840452,-341.073,0.00029291,2]
[341190925,1730581840464,-156.32,0.00029853,2]
[341190926,1730581840475,-16.85678327,0.000299,2]
[341190927,1730581840487,-569.442,0.000299,2]
[341190928,1730581840502,-294.48900788,0.000299,2]
[341190929,1730581840515,-6752.46229919,0.000299,2]
[341190930,1730581840525,-205.71512504,0.0003,2]
[341190931,1730581840535,-49.72257578,0.0003,2]
[341190932,1730581840548,-187.76242422,0.0003,2]
[341190933,1730581840559,-237.485,0.0003,2]
[341190934,1730581840570,-229.7955,0.0003,2]
[341190935,1730581840579,-83.85060788,0.0003,2]
[341190936,1730581840591,-145.94489212,0.0003,2]
[341190937,1730581840600,-324.33175,0.0003,2]
[341190938,1730581840610,-153.35335786,0.0003,2]
[341190939,1730581840627,-170.97839214,0.0003,2]
[341190940,1730581840637,-441.99875,0.0003,2]
[341190941,1730581840647,-441.99875,0.0003,2]
[341190942,1730581840657,-164.59,0.00030029,2]
[341190943,1730581840666,-162.02,0.0003015,2]
[341190944,1730581840678,-154.32,0.00030548,2]
[341190945,1730581840690,-1000.0,0.0003068,2]
[341190946,1730581840699,-710.96,0.00030789,2]
[341190947,1730581840708,-500.0,0.00031,2]
[341190948,1730581840717,-156.32,0.00031151,2]
[341190949,1730581840725,-1155.0,0.00031203,2]
[341190950,1730581840734,-500.0,0.0003143,2]
[341190951,1730581840744,-164.59,0.00031517,2]
[341190952,1730581840752,-1248.0,0.00032291,2]
[341190953,1730581840762,-1985.0,0.00032291,2]
[341190954,1730581840771,-1792.0,0.00032291,2]
[341190955,1730581840780,-1255.0,0.00032291,2]
[341190956,1730581840790,-1000.0,0.00032532,2]
[341190957,1730581840799,-377.22410786,0.00032876,2]
[341190965,1730581843216,-500.0,0.000273,2]
[341190966,1730581843227,-122.77589214,0.00032876,2]
[341190967,1730581843238,-101.56331586,0.00032877,2]
[341190968,1730581843325,-405.23668414,0.00032877,2]
[341190969,1730581843334,-550.0,0.00033,2]
[341190970,1730581843343,-710.96,0.00033053,2]
[341190971,1730581843351,-439.17331586,0.00033386,2]
[341190985,1730581846214,-308.4,0.00033386,2]
[341191173,1730582720350,166.72343259,9e-05,2]
[341191174,1730582720371,166.72343259,9e-05,2]
[341191175,1730582720391,166.72343259,9e-05,2]
[341191176,1730582720412,166.72343259,9e-05,2]
[341191177,1730582720433,142.27403971,9e-05,2]
[341191178,1730582730728,157.73267959,0.000101,2]
[341191179,1730582730749,157.73267959,0.000101,2]
[341191180,1730582730769,157.73267959,0.000101,2]
[341191181,1730582730789,157.73267959,0.000101,2]
[341191182,1730582730809,157.73267959,0.000101,2]
[341191183,1730582730830,157.73267959,0.000101,2]
[341191184,1730582730853,157.73267959,0.000101,2]
[341191185,1730582730882,395.87124287,0.000101,2]
[341191186,1730582737802,157.73267959,9e-05,2]
[341191187,1730582737822,51.58732041,9e-05,2]
[341191188,1730582757370,150.0,6.94e-05,2]
[341191189,1730582757390,150.0,6.94e-05,2]
[341191190,1730582758127,-160.4,0.00015342,2]
[341191191,1730582758148,-151.353,0.00015601,2]
[341191192,1730582758167,-367.0,0.000187,2]
[341191193,1730582758187,-192.00434903,0.00021,2]
[341191196,1730582836101,-450.0,0.00015,2]
[341191197,1730582836122,-57.99565097,0.00021,2]
[341191198,1730582836141,-583.89999999,0.00021,7]
[341191199,1730582836162,-300.0,0.00023,2]
[341191200,1730582836182,-200.0,0.00023,2]
[341191201,1730582836202,-350.0,0.00025,2]
[341191202,1730582836221,-252.04021564,0.000264,2]
[341191203,1730582850117,-590.76972181,0.0002,5]
[341191204,1730582854235,-302.53183843,0.0002,5]
[341191208,1730582982177,-2071.24972853,0.000149,2]
[341191209,1730582982870,-1695.1526417,0.000149,2]
[341191210,1730582983549,-150.0,0.000149,2]
[341191211,1730582983964,-150.0,0.000149,2]
[341191212,1730582984898,-150.0,0.000149,2]
[341191213,1730582985619,-150.0,0.000149,2]
[341191214,1730582986129,-150.0,0.000149,2]
[341191215,1730582986892,-150.0,0.000149,2]
[341191216,1730582988263,-150.0,0.000149,2]
[341191217,1730582988890,-150.0,0.000149,2]
[341191218,1730582989511,-150.0,0.000149,2]
[341191219,1730582990567,-150.0,0.000149,2]
[341191220,1730582991412,-150.0,0.000149,2]
[341191221,1730582992235,-150.0,0.000149,2]
[341191222,1730582992755,-150.0,0.000149,2]
[341191223,1730582993166,-150.0,0.000149,2]
[341191224,1730582993833,-150.0,0.000149,2]
[341191225,1730582994601,-150.0,0.000149,2]
[341191226,1730582996186,-150.0,0.000149,2]
[341191227,1730582997000,-150.0,0.000149,2]
[341191228,1730582997695,-150.0,0.000149,2]
[341191229,1730582998327,-150.0,0.000149,2]
[341191230,1730582999006,-150.0,0.000149,2]
[341191231,1730582999764,-150.0,0.000149,2]
[341191232,1730583000217,-150.0,0.000149,2]
[341191233,1730583000840,-150.0,0.000149,2]
[341191234,1730583001496,-150.0,0.000149,2]
[341191235,1730583002191,-150.0,0.000149,2]
[341191236,1730583002686,-150.0,0.000149,2]
[341191237,1730583004412,-150.0,0.000149,2]
[341191238,1730583004973,-150.0,0.000149,2]
[341191239,1730583005852,-150.0,0.000149,2]
[341191240,1730583006528,-150.0,0.000149,2]
[341191241,1730583007145,-150.0,0.000149,2]
[341191242,1730583007814,-150.0,0.000149,2]
[341191243,1730583008630,-150.0,0.000149,2]
[341191244,1730583009368,-150.0,0.000149,2]
[341191245,1730583009943,-150.0,0.000149,2]
[341191251,1730583010538,-150.0,0.000149,2]
[341191256,1730583032121,-341.8181,0.000149,2]
[341191257,1730583032293,-1046.7207912,0.000149,2]
[341191258,1730583032354,-2020.1146301,0.000149,2]
[341191259,1730583032415,-1174.6169,0.000149,2]
[341191274,1730583038672,-71348.47750165,0.000149,2]
[341191276,1730583038683,-15744.52329574,0.000149,2]
[341191279,1730583038708,-13074.73515205,0.000149,2]
[341191282,1730583038719,-110547.73558575,0.000149,2]
[341191284,1730583038730,-29599.5,0.000149,2]
[341191324,1730583040367,-13932.36767328,0.000149,2]
[341191325,1730583040377,-154343.35855291,0.00015,2]
[341191326,1730583040386,-1600.74549252,0.00015242,2]
[341191327,1730583040395,-155.65,0.00015342,2]
[341191328,1730583040405,-1600.74549252,0.0001847,2]
[341191329,1730583040415,-2210.00319557,0.0001847,2]
[341191330,1730583040425,-251.55922099,0.0002,5]
[341191331,1730583040434,-1197.2749344,0.0002,2]
[341191332,1730583040443,-1600.74549252,0.00021697,2]
[341191333,1730583040453,-849.82227758,0.00022,2]
[341191334,1730583040462,-155.65,0.00022945,2]
[341191335,1730583040472,-1600.74549252,0.00024925,2]
[341191336,1730583040481,-657.28788836,0.000253,5]
[341191337,1730583040492,-265.3142783,0.000264,2]
[341191338,1730583040501,-400.0,0.00027,2]
[341191339,1730583040511,-939.0,0.00027393,2]
[341191340,1730583040521,-499.99,0.00027393,2]
[341191341,1730583040530,-1600.74549252,0.00028152,2]
[341191342,1730583040540,-950.33343612,0.00028763,5]
[341191343,1730583040550,-1985.0,0.00028845,2]
[341191344,1730583040559,-1255.0,0.00028955,2]
[341191345,1730583040567,-1152.0,0.00028955,2]
[341191346,1730583040578,-450.0,0.00029,2]
[341191347,1730583040587,-305.75,0.0003,2]
[341191348,1730583040597,-561.26,0.00030275,2]
[341191349,1730583040606,-160.4,0.00030548,2]
[341191351,1730583040616,-155.65,0.00030548,2]
[341191352,1730583040626,-500.0,0.00031,2]
[341191353,1730583040635,-1492.6,0.00031203,2]
[341191354,1730583040646,-250.0,0.0003134,2]
[341191355,1730583040657,-1600.74549252,0.0003138,15]
[341191356,1730583040666,-1492.6,0.00031704,2]
[341191357,1730583040676,-1430.85,0.00031774,2]
[341191358,1730583040685,-1977.0,0.00031845,2]
[341191359,1730583040694,-1215.0,0.00031898,2]
[341191360,1730583040703,-150.0,0.00031926,7]
[341191361,1730583040713,-250.0,0.00032025,2]
[341191362,1730583040722,-200.0,0.0003215,2]
[341191363,1730583040731,-266.8,0.0003219,2]
[341191364,1730583040740,-1492.6,0.00032206,2]
[341191365,1730583040750,-268.845,0.00032294,32]
[341191366,1730583040760,-23900.0,0.00032315,2]
[341191367,1730583040769,-1000.0,0.00032326,2]
[341191368,1730583040779,-561.26,0.00032539,2]
[341191369,1730583040790,-1492.6,0.00032707,2]
[341191370,1730583040799,-178.8,0.00032729,2]
[341191371,1730583040808,-1751.24664056,0.00032899,2]
[341191372,1730583040818,-1615.0,0.0003292,2]
[341191373,1730583040828,-550.0,0.00033,2]
[341191374,1730583040838,-166.55,0.00033051,2]
[341191375,1730583040848,-17513.2001439,0.0003306,2]
[341191376,1730583040857,-168.66,0.00033115,2]
[341191377,1730583040866,-1492.6,0.00033208,2]
[341191378,1730583040875,-166.55,0.00033217,2]
[341191379,1730583040885,-1353.75067575,0.00033282,2]
[341191380,1730583040894,-398.0,0.000333,18]
[341191381,1730583040904,-195.0,0.000333,18]
[341191382,1730583040913,-166.55,0.00033382,2]
[341191383,1730583040922,-160.85764733,0.00033385,2]
[341191384,1730583040932,-3331.8435126,0.00033509,2]
[341191385,1730583040941,-20153.3657821,0.00033542,2]
[341191386,1730583040951,-1492.6,0.0003371,2]
[341191387,1730583040960,-200.0,0.00033717,120]
[341191388,1730583040969,-500.0,0.00033731,120]
[341191389,1730583040978,-604.12219864,0.00033989,120]
[341191390,1730583040988,-1492.6,0.00034211,2]